bitfinex/quotes_BTCUSD_20240918
["timestamp","ask_amount","ask_price","bid_price","bid_amount"]
[1726649841247,0.05671154,60313.0,60312.0,1.17159567]
[1726649841471,0.04571154,60313.0,60312.0,1.16659567]
[1726649841703,0.05671154,60313.0,60312.0,1.18506468]
[1726649841929,0.06571154,60313.0,60312.0,1.18606468]
[1726649842355,0.05671154,60313.0,60312.0,1.18506468]
[1726649842640,0.06271154,60313.0,60312.0,1.18606468]
[1726649843078,0.05171154,60313.0,60312.0,1.18506468]
[1726649843299,0.06271154,60313.0,60312.0,1.18606468]
[1726649843525,0.05171154,60313.0,60312.0,1.18506468]
[1726649844011,0.05871154,60313.0,60312.0,1.18606468]
[1726649845343,0.05774453,60313.0,60312.0,1.18606468]
[1726649846238,0.05774453,60313.0,60312.0,1.51767268]
[1726649847590,0.05701848,60313.0,60312.0,1.51767268]
[1726649848027,0.05101848,60313.0,60312.0,1.51667268]
[1726649848244,0.04901848,60313.0,60312.0,1.51567268]
[1726649849424,0.04901848,60313.0,60312.0,1.49820367]
[1726649849425,0.04401848,60313.0,60312.0,1.49820367]
[1726649849643,0.04601848,60313.0,60312.0,1.52804087]
[1726649849869,0.04501848,60313.0,60312.0,1.52204087]
[1726649850784,0.04501848,60313.0,60312.0,1.52304087]
[1726649851032,0.04401848,60313.0,60312.0,1.51604087]
[1726649851519,0.04501848,60313.0,60312.0,1.52604087]
[1726649851734,0.04501848,60313.0,60312.0,1.52204087]
[1726649852196,0.04601848,60313.0,60312.0,1.52804087]
[1726649852884,0.04501848,60313.0,60312.0,1.52204087]
[1726649853100,0.04501848,60313.0,60312.0,1.52203926]
[1726649853781,0.04601848,60313.0,60312.0,1.52803926]
[1726649854947,0.04601848,60313.0,60312.0,1.60286435]
[1726649855435,0.04766248,60313.0,60312.0,1.60086435]
[1726649855893,0.04666248,60313.0,60312.0,1.59486435]
[1726649856329,0.05066248,60313.0,60312.0,1.59486435]
[1726649856582,0.05066248,60313.0,60312.0,1.57702876]
[1726649857001,0.04666248,60313.0,60312.0,1.57702876]
[1726649857002,0.04666248,60313.0,60312.0,1.59484006]
[1726649857244,0.05066248,60313.0,60312.0,1.59484006]
[1726649857484,0.04666248,60313.0,60312.0,1.59482253]
[1726649857719,0.04966248,60313.0,60312.0,1.59482253]
[1726649857960,0.04866248,60313.0,60312.0,1.58882253]
[1726649858417,0.05166248,60313.0,60312.0,1.53901497]
[1726649858838,0.04866248,60313.0,60312.0,1.53901497]
[1726649859063,0.04566248,60313.0,60312.0,1.53901497]
[1726649859558,0.04666248,60313.0,60312.0,1.53901497]
[1726649859786,0.04566248,60313.0,60312.0,1.53901497]
[1726649863670,0.04666248,60313.0,60312.0,1.52320367]
[1726649863896,0.04666248,60313.0,60312.0,1.51801595]
[1726649864332,0.04666248,60313.0,60312.0,1.54101595]
[1726649865070,0.04666248,60313.0,60312.0,1.46391595]
[1726649865302,0.04666248,60313.0,60312.0,1.56350933]
[1726649865537,0.04666248,60313.0,60312.0,1.46391595]
[1726649866217,0.04666248,60313.0,60312.0,1.54301595]
[1726649866655,0.04666248,60313.0,60312.0,1.90458346]
[1726649884857,0.165744,60334.0,60330.0,0.165754]
[1726649885293,0.165746,60333.0,60330.0,0.165754]
[1726649885514,0.165745,60334.0,60330.0,0.165754]
[1726649892637,0.165747,60333.0,60329.0,0.257357]
[1726649903012,0.828992,60314.0,60313.0,0.000822]
[1726649926578,0.165798,60314.0,60313.0,0.000822]
[1726650112732,1.80399204,60313.0,60312.0,1e-06]
[1726650113644,1.6360832,60313.0,60312.0,1e-06]
[1726650113868,1.6360832,60313.0,60312.0,0.092801]
[1726650119645,1.6377272,60313.0,60312.0,0.092801]
[1726650122961,1.6377272,60313.0,60312.0,0.092801]
[1726650123881,1.6637448,60313.0,60312.0,0.092801]
[1726650124104,1.1882716,60313.0,60312.0,0.092801]
[1726650125505,1.33747873,60313.0,60312.0,0.092801]
[1726650125742,1.1882716,60313.0,60312.0,0.092801]
[1726650126458,1.1882716,60313.0,60312.0,1e-06]
[1726650128757,1.2022716,60313.0,60312.0,0.001001]
[1726650129038,1.1882716,60313.0,60312.0,1e-06]
[1726650130506,1.2022716,60313.0,60312.0,0.001001]
[1726650137205,1.5338746,60313.0,60312.0,0.001001]
[1726650137425,1.2022716,60313.0,60312.0,0.001001]
[1726650137838,1.2162716,60313.0,60312.0,0.002001]
[1726650138268,1.1882716,60313.0,60312.0,1e-06]
[1726650138909,1.1882716,60313.0,60312.0,0.091301]
[1726650159138,1.66465963,60270.0,60269.0,0.000822]
[1726650161428,1.66630563,60270.0,60269.0,0.000822]
[1726650163142,1.66830563,60270.0,60269.0,0.000822]
[1726650179933,1.75110593,60270.0,60269.0,0.000822]
[1726650190376,1.66630563,60270.0,60269.0,0.000822]
[1726650191082,1.66830563,60270.0,60269.0,0.000822]
[1726650192631,2.06014563,60270.0,60269.0,0.000822]
[1726650227160,2.41498563,60270.0,60269.0,1e-06]
[1726650229890,2.58228208,60270.0,60269.0,1e-06]
[1726650231766,2.58225065,60270.0,60269.0,1e-06]
[1726650233343,2.41498563,60270.0,60269.0,1e-06]
[1726650240211,2.57807121,60270.0,60269.0,1e-06]
[1726650240432,2.4573754,60270.0,60269.0,1e-06]
[1726650240657,2.41498563,60270.0,60269.0,1e-06]
[1726650242941,2.41498563,60270.0,60255.0,0.02601448]
[1726650242942,1.84913772,60256.0,60255.0,0.02601448]
[1726650243175,2.08288629,60256.0,60255.0,0.02601448]
[1726650243837,2.08288629,60256.0,60255.0,4.8e-07]
[1726650244721,2.09688629,60256.0,60255.0,4.8e-07]
[1726650244942,1.57527072,60254.0,60253.0,0.0991]
[1726650245171,1.8945202,60254.0,60253.0,0.0991]
[1726650245432,1.72912089,60254.0,60253.0,0.0991]
[1726650246097,1.72712089,60254.0,60253.0,0.0991]
[1726650247218,2.07504889,60254.0,60253.0,0.1001]
[1726650247433,1.74312089,60254.0,60253.0,0.1001]
[1726650247659,1.74112089,60254.0,60253.0,0.1001]
[1726650248102,1.74312089,60254.0,60253.0,0.1001]
[1726650248978,1.74312089,60254.0,60225.0,0.4149251]
[1726650248979,2.26219772,60252.0,60251.0,1.1e-07]
[1726650249222,2.41632333,60252.0,60251.0,1.1e-07]
[1726650250331,2.43032333,60252.0,60251.0,1.1e-07]
[1726650253532,2.43032333,60252.0,60237.0,0.0824]
[1726650253533,0.02159472,60240.0,60239.0,0.0995]
[1726650253765,2.08453817,60240.0,60239.0,0.0995]
[1726650253988,2.08653817,60240.0,60239.0,0.0995]
[1726650254240,2.23503798,60240.0,60239.0,0.0995]
[1726650254485,2.08653817,60240.0,60239.0,0.0995]
[1726650255175,2.10053817,60240.0,60239.0,0.0995]
[1726650257286,2.08653817,60240.0,60239.0,0.0995]
[1726650257511,2.10053817,60240.0,60239.0,0.0995]
[1726650258192,2.11453817,60240.0,60239.0,0.0995]
[1726650258434,2.08653817,60240.0,60239.0,0.0995]
[1726650258662,2.10053817,60240.0,60239.0,0.0995]
[1726650258900,2.06153817,60240.0,60239.0,0.0995]
[1726650259138,2.16033143,60240.0,60239.0,0.0995]
[1726650259378,2.16233143,60240.0,60239.0,0.100322]
[1726650259657,2.06353817,60240.0,60239.0,0.100322]
[1726650259880,1.73153317,60240.0,60239.0,0.100322]
[1726650260123,1.70793845,60240.0,60239.0,0.100322]
[1726650260365,1.66528088,60240.0,60239.0,0.100322]
[1726650260601,1.14997588,60240.0,60239.0,0.100322]
[1726650260842,1.31597788,60240.0,60239.0,0.100322]
[1726650261078,1.32997788,60240.0,60239.0,0.100322]
[1726650261311,1.31597788,60240.0,60239.0,0.100322]
[1726650261783,1.32997788,60240.0,60239.0,0.100322]
[1726650262020,1.31597788,60240.0,60239.0,0.100322]
[1726650262219,1.32997788,60240.0,60239.0,0.100322]
[1726650263199,1.31597788,60240.0,60239.0,0.100322]
[1726650263447,1.32997788,60240.0,60239.0,0.100322]
[1726650264650,1.31597788,60240.0,60239.0,0.100322]
[1726650265113,1.32997788,60240.0,60239.0,0.100322]
[1726650265344,1.31597788,60240.0,60239.0,0.100322]
[1726650265806,1.32997788,60240.0,60239.0,0.100322]
[1726650266042,1.31597788,60240.0,60239.0,0.100322]
[1726650266268,1.32997788,60240.0,60239.0,0.100322]
[1726650268418,1.31597788,60240.0,60239.0,0.100322]
[1726650268858,1.32997788,60240.0,60239.0,0.100322]
[1726650269115,1.31597788,60240.0,60239.0,0.100322]
[1726650270046,1.32997788,60240.0,60239.0,0.100322]
[1726650271694,1.31597788,60240.0,60239.0,0.100322]
[1726650271922,1.32997788,60240.0,60239.0,0.100322]
[1726650272621,1.34397788,60240.0,60239.0,0.100322]
[1726650274742,1.34377812,60240.0,60239.0,0.100322]
[1726650281191,1.01177312,60240.0,60239.0,0.100322]
[1726650282134,1.01056129,60240.0,60239.0,0.100322]
[1726650282688,0.67855629,60240.0,60239.0,0.100322]
[1726650284872,1.01056129,60240.0,60239.0,0.100322]
[1726650285354,1.01220529,60240.0,60239.0,0.100322]
[1726650285817,1.31621029,60240.0,60239.0,0.100322]
[1726650286049,0.99820529,60240.0,60239.0,0.100322]
[1726650286305,1.31621029,60240.0,60239.0,0.100322]
[1726650286564,0.99120529,60240.0,60239.0,0.100322]
[1726650287041,1.31621029,60240.0,60239.0,0.100322]
[1726650287501,1.36570314,60240.0,60239.0,0.100322]
[1726650288232,1.36573588,60240.0,60239.0,0.100322]
[1726650288477,1.40449868,60240.0,60239.0,0.100322]
[1726650288718,1.39049868,60240.0,60239.0,0.1123043]
[1726650288958,1.40449868,60240.0,60239.0,0.1123043]
[1726650289177,1.39049868,60240.0,60239.0,0.1123043]
[1726650289397,1.31621029,60240.0,60239.0,0.1123043]
[1726650289638,1.40449868,60240.0,60239.0,0.1123043]
[1726650289869,1.31621029,60240.0,60239.0,0.1123043]
[1726650290491,1.41529545,60240.0,60239.0,0.1123043]
[1726650290603,1.31621029,60240.0,60239.0,0.1123043]
[1726650290844,1.41529573,60240.0,60239.0,0.1123043]
[1726650291091,1.31621029,60240.0,60239.0,0.1123043]
[1726650291573,1.39052692,60240.0,60239.0,0.1123043]
[1726650292041,1.39952692,60240.0,60239.0,0.1123043]
[1726650292268,1.31621029,60240.0,60239.0,0.1123043]
[1726650292496,1.40452633,60240.0,60239.0,0.1123043]
[1726650292738,1.31621029,60240.0,60239.0,0.1123043]
[1726650292989,1.39053117,60240.0,60239.0,0.1123043]
[1726650293210,1.40453117,60240.0,60239.0,0.1123043]
[1726650293662,1.36576035,60240.0,60239.0,0.1123043]
[1726650294629,1.39053117,60240.0,60239.0,0.1123043]
[1726650295334,1.40453117,60240.0,60239.0,0.1123043]
[1726650295563,1.39053117,60240.0,60239.0,0.1123043]
[1726650296016,1.31621029,60240.0,60239.0,0.1123043]
[1726650296238,1.39053117,60240.0,60239.0,0.1123043]
[1726650296467,1.39053117,60240.0,60239.0,0.0128043]
[1726650296723,1.7473098,60240.0,60239.0,0.0128043]
[1726650296989,1.66221529,60240.0,60239.0,0.0128043]
[1726650297716,1.78608342,60240.0,60239.0,0.0128043]
[1726650298400,1.33021029,60240.0,60239.0,0.0128043]
[1726650298402,1.41534796,60240.0,60239.0,0.0128043]
[1726650298642,1.40457091,60240.0,60239.0,0.0128043]
[1726650298878,1.73658869,60240.0,60239.0,0.0128043]
[1726650299112,1.66221529,60240.0,60239.0,0.0128043]
[1726650299355,1.42934796,60240.0,60239.0,0.0128043]
[1726650300064,1.76135296,60240.0,60239.0,0.0128043]
[1726650300299,1.33021029,60240.0,60239.0,0.0128043]
[1726650300567,1.66221529,60240.0,60239.0,0.0128043]
[1726650300821,1.76135296,60240.0,60239.0,0.0128043]
[1726650301590,1.76135296,60240.0,60224.0,9e-07]
[1726650301591,1.63609072,60225.0,60224.0,9e-07]
[1726650301832,1.63609072,60225.0,60223.0,0.0039941]
[1726650301833,0.57973372,60224.0,60223.0,0.0039941]
[1726650302056,1.75706542,60224.0,60223.0,0.0039941]
[1726650302308,1.77440785,60224.0,60223.0,0.0039941]
[1726650302784,2.10650085,60224.0,60223.0,0.0039941]
[1726650303016,1.77440785,60224.0,60223.0,0.0039941]
[1726650303258,2.12050085,60224.0,60223.0,0.0039941]
[1726650303507,1.57621072,60216.0,60215.0,7.478e-05]
[1726650303735,1.73343537,60216.0,60215.0,7.478e-05]
[1726650304207,1.85719501,60216.0,60215.0,7.478e-05]
[1726650304708,1.73343537,60216.0,60215.0,7.478e-05]
[1726650305195,1.8571391,60216.0,60215.0,7.478e-05]
[1726650305667,1.8711391,60216.0,60215.0,7.478e-05]
[1726650305947,1.8571391,60216.0,60215.0,7.478e-05]
[1726650306195,1.84635264,60216.0,60215.0,7.478e-05]
[1726650306437,1.74743537,60216.0,60215.0,7.478e-05]
[1726650306689,1.84634805,60216.0,60215.0,7.478e-05]
[1726650306956,1.84634768,60216.0,60215.0,7.478e-05]
[1726650307204,1.74743537,60216.0,60215.0,7.478e-05]
[1726650308175,1.82156158,60216.0,60215.0,7.478e-05]
[1726650308644,1.74743537,60216.0,60215.0,7.478e-05]
[1726650308897,2.15369858,60216.0,60215.0,7.478e-05]
[1726650309628,2.07957237,60216.0,60215.0,7.478e-05]
[1726650309901,2.15369858,60216.0,60215.0,7.478e-05]
[1726650310879,2.15569858,60216.0,60215.0,7.478e-05]
[1726650311113,2.1396433,60216.0,60215.0,7.478e-05]
[1726650311578,2.07957237,60216.0,60215.0,7.478e-05]
[1726650311806,2.1396433,60216.0,60215.0,7.478e-05]
[1726650312075,2.07957237,60216.0,60215.0,7.478e-05]
[1726650312310,2.08157237,60216.0,60215.0,7.478e-05]
[1726650312570,2.08157237,60216.0,60198.0,0.06847788]
[1726650312571,1.162808,60199.0,60198.0,0.06847788]
[1726650312816,1.32237756,60199.0,60198.0,0.06847788]
[1726650313041,1.32237756,60199.0,60198.0,0.06674364]
[1726650314042,1.33971999,60199.0,60198.0,0.06674364]
[1726650315718,1.35071999,60199.0,60198.0,0.06674364]
[1726650319816,1.35071999,60199.0,60198.0,0.06606011]
[1726650322988,0.19445743,60199.0,60198.0,0.15756539]
[1726650323242,0.52668843,60199.0,60198.0,0.15756539]
[1726650323488,0.19445743,60199.0,60198.0,0.15756539]
[1726650323950,0.85891943,60199.0,60198.0,0.15838639]
[1726650324175,0.52668843,60199.0,60198.0,0.15838639]
[1726650324620,0.51568843,60199.0,60198.0,0.15838639]
[1726650325078,0.52168843,60199.0,60198.0,0.15838639]
[1726650325319,0.18945743,60199.0,60198.0,0.15838639]
[1726650326232,0.52168843,60199.0,60198.0,0.15838639]
[1726650326724,0.18945743,60199.0,60198.0,0.15838639]
[1726650328386,0.18345743,60199.0,60198.0,0.15838639]
[1726650328634,0.19045743,60199.0,60198.0,0.15838639]
[1726650329185,0.18345743,60199.0,60198.0,0.15838639]
[1726650329328,0.18845743,60199.0,60198.0,0.15838639]
[1726650329563,0.52068843,60199.0,60198.0,0.15838639]
[1726650332138,0.20434325,60199.0,60198.0,0.15838639]
[1726650333102,0.53657425,60199.0,60198.0,0.15838639]
[1726650336221,0.53821825,60199.0,60198.0,0.15838639]
[1726650336470,0.87044925,60199.0,60198.0,0.15838639]
[1726650337655,0.53821825,60199.0,60198.0,0.15838639]
[1726650343109,0.52087582,60199.0,60198.0,0.15607407]
[1726650343577,0.85310682,60199.0,60198.0,0.15607407]
[1726650343806,0.52087582,60199.0,60198.0,0.15607407]
[1726650344244,0.53821825,60199.0,60198.0,0.15607407]
[1726650345532,0.87044925,60199.0,60198.0,0.15607407]
[1726650345779,0.53821825,60199.0,60198.0,0.15607407]
[1726650349855,0.53321825,60199.0,60198.0,0.15607407]
[1726650350101,0.54221825,60199.0,60198.0,0.15607407]
[1726650350345,0.53321825,60199.0,60198.0,0.15607407]
[1726650350815,0.54221825,60199.0,60198.0,0.15607407]
[1726650356716,0.20998725,60199.0,60198.0,0.15607407]
[1726650356953,1.03401881,60199.0,60198.0,0.000821]
[1726650357190,1.41580999,60199.0,60198.0,0.000821]
[1726650358143,1.40680999,60199.0,60198.0,0.000821]
[1726650358378,1.42080999,60199.0,60198.0,0.000821]
[1726650358625,1.40680999,60199.0,60198.0,0.000821]
[1726650359075,1.42080999,60199.0,60198.0,0.000821]
[1726650360941,1.40681603,60199.0,60198.0,0.000821]
[1726650361135,1.24724647,60199.0,60198.0,0.000821]
[1726650361361,1.26124647,60199.0,60198.0,0.000821]
[1726650364133,1.21168025,60199.0,60198.0,0.000821]
[1726650366635,1.28602958,60199.0,60198.0,0.000821]
[1726650367622,1.27202958,60199.0,60198.0,0.000821]
[1726650367815,1.28602958,60199.0,60198.0,0.000821]
[1726650368038,1.27202958,60199.0,60198.0,0.000821]
[1726650368554,1.28602958,60199.0,60198.0,0.000821]
[1726650369044,1.44559914,60199.0,60194.0,0.00922728]
[1726650369289,1.44559914,60199.0,60149.0,0.22091169]
[1726650369290,0.06,60160.0,60149.0,0.22091169]
[1726650369541,0.06,60160.0,60148.0,0.2488821]
[1726650369542,0.86113,60159.0,60148.0,0.2488821]
[1726650369783,1.195582,60159.0,60148.0,0.2488821]
[1726650370040,1.44870139,60159.0,60148.0,0.2488821]
[1726650370287,1.44870139,60159.0,60139.0,8.298e-05]
[1726650370288,0.863197,60154.0,60139.0,8.298e-05]
[1726650370528,1.04375293,60154.0,60139.0,8.298e-05]
[1726650370770,0.03,60149.0,60135.0,0.33258]
[1726650371008,0.03,60149.0,60136.0,0.16305367]
[1726650371253,0.03,60149.0,60141.0,0.166274]
[1726650371486,0.002,60157.0,60134.0,0.05949908]
[1726650371487,0.03,60148.0,60134.0,0.05949908]
[1726650371734,0.03,60147.0,60139.0,0.166279]
[1726650371966,0.03,60147.0,60137.0,0.000822]
[1726650372187,0.19826,60147.0,60137.0,0.000822]
[1726650372418,0.03,60147.0,60139.0,0.16628]
[1726650372652,0.03,60147.0,60137.0,0.167106]
[1726650372897,0.03,60147.0,60137.0,0.000822]
[1726650373125,0.03,60147.0,60138.0,0.166282]
[1726650373347,0.03,60147.0,60137.0,0.000822]
[1726650374058,0.03,60147.0,60140.0,0.023]
[1726650374305,0.014,60147.0,60140.0,0.023]
[1726650374540,0.014,60147.0,60143.0,0.166269]
[1726650374784,0.03,60149.0,60142.0,0.18927]
[1726650375021,0.014,60147.0,60142.0,0.18927]
[1726650375464,0.03,60149.0,60142.0,0.18927]
[1726650375465,0.03,60149.0,60143.0,0.166269]
[1726650375696,0.014,60147.0,60144.0,0.023]
[1726650375955,0.03,60152.0,60147.0,0.189257]
[1726650376209,0.03,60156.0,60148.0,0.166256]
[1726650376453,0.014,60147.0,60146.0,0.189261]
[1726650377658,0.014,60147.0,60146.0,0.521785]
[1726650377901,0.03,60151.0,60146.0,0.521785]
[1726650377902,0.03,60151.0,60148.0,0.023]
[1726650378381,0.03,60151.0,60148.0,0.332512]
[1726650378611,0.03,60151.0,60150.0,0.166251]
[1726650378826,0.03,60156.0,60151.0,0.166246]
[1726650379059,0.16305367,60157.0,60148.0,0.332512]
[1726650379060,0.03,60152.0,60149.0,0.166252]
[1726650379290,0.03,60151.0,60150.0,0.166251]
[1726650379524,0.044,60151.0,60150.0,0.166251]
[1726650379745,0.03,60151.0,60150.0,0.166251]
[1726650379971,0.03,60151.0,60149.0,0.166253]
[1726650380205,0.03,60151.0,60150.0,0.166251]
[1726650381892,0.041,60151.0,60150.0,0.498753]
[1726650382139,2.041,60151.0,60150.0,0.498753]
[1726650382611,2.041,60151.0,60150.0,0.166251]
[1726650382849,2.03,60151.0,60150.0,0.166251]
[1726650383116,2.04,60151.0,60150.0,0.166251]
[1726650383359,2.04,60151.0,60150.0,0.498753]
[1726650384557,2.03,60151.0,60150.0,0.498753]
[1726650385031,2.009,60151.0,60150.0,0.831255]
[1726650385285,1.7546726,60151.0,60150.0,1.186757]
[1726650385547,1.42271421,60151.0,60150.0,2.09171467]
[1726650385780,0.63463932,60151.0,60150.0,2.34871467]
[1726650386025,0.31923932,60151.0,60150.0,2.17481467]
[1726650386263,0.27393156,60151.0,60150.0,2.17481467]
[1726650386506,0.08262,60159.0,60158.0,1.519056]
[1726650387028,0.03,60175.0,60160.0,0.023]
[1726650387260,0.03,60175.0,60170.0,0.498586]
[1726650387261,0.24936205,60171.0,60170.0,0.498586]
[1726650387498,0.24936205,60171.0,60160.0,0.023]
[1726650387499,0.03,60171.0,60160.0,0.023]
[1726650387737,0.166206,60167.0,60162.0,0.023]
[1726650387967,0.166202,60168.0,60162.0,0.189217]
[1726650388182,0.166204,60167.0,60162.0,0.189217]
[1726650388404,0.1962,60169.0,60163.0,0.166214]
[1726650388616,0.1962,60169.0,60164.0,0.166211]
[1726650389054,0.166213,60164.0,60159.0,0.166225]
[1726650389283,0.332435,60163.0,60139.0,0.1]
[1726650389540,0.03,60161.0,60140.0,0.16305367]
[1726650389775,0.196222,60161.0,60155.0,0.166235]
[1726650389998,0.03,60161.0,60140.0,0.16305367]
[1726650390725,0.03,60161.0,60160.0,0.166223]
[1726650391176,0.044,60163.0,60151.0,0.023]
[1726650391404,0.014,60163.0,60162.0,0.189217]
[1726650391626,0.014,60163.0,60162.0,0.521652]
[1726650392076,0.03,60164.0,60163.0,0.166215]
[1726650392293,0.03,60164.0,60162.0,0.355435]
[1726650392294,0.03,60167.0,60162.0,0.023]
[1726650392528,0.0814,60168.0,60162.0,0.023]
[1726650392529,0.0814,60168.0,60165.0,0.332419]
[1726650392771,0.0814,60168.0,60167.0,0.166204]
[1726650393004,0.1114,60168.0,60167.0,0.166204]
[1726650393960,0.1254,60168.0,60167.0,0.166204]
[1726650394193,0.1254,60168.0,60166.0,0.166206]
[1726650394194,0.03,60167.0,60166.0,0.166206]
[1726650394442,0.0954,60168.0,60162.0,0.332431]
[1726650394443,0.1254,60168.0,60162.0,0.332431]
[1726650394687,0.1254,60168.0,60166.0,0.166204]
[1726650394902,0.1254,60168.0,60166.0,0.166206]
[1726650395381,0.1114,60168.0,60166.0,0.166206]
[1726650395579,0.1254,60168.0,60166.0,0.166206]
[1726650395912,0.03,60167.0,60166.0,0.166206]
[1726650396141,0.03,60167.0,60163.0,0.023]
[1726650396370,0.03,60167.0,60165.0,0.166207]
[1726650396612,0.03,60167.0,60166.0,0.166206]
[1726650397300,0.03,60167.0,60166.0,0.498619]
[1726650397527,0.03,60167.0,60166.0,0.166206]
[1726650398686,0.044,60167.0,60166.0,0.166206]
[1726650398880,0.03,60167.0,60166.0,0.166206]
[1726650399246,0.014,60167.0,60164.0,0.332423]
[1726650399642,0.014,60167.0,60166.0,0.166206]
[1726650399643,0.044,60167.0,60166.0,0.166206]
[1726650400042,0.03,60167.0,60166.0,0.166206]
[1726650400706,0.044,60167.0,60166.0,0.166206]
[1726650401157,0.044,60167.0,60163.0,0.023]
[1726650401824,0.044,60167.0,60164.0,0.166211]
[1726650402046,0.031644,60167.0,60164.0,0.166211]
[1726650402529,0.045644,60167.0,60165.0,0.166207]
[1726650402759,0.031644,60167.0,60165.0,0.166209]
[1726650402985,0.031644,60167.0,60146.0,0.332521]
[1726650402986,0.03,60157.0,60146.0,0.332521]
[1726650403207,0.166238,60155.0,60148.0,0.166255]
[1726650403644,0.166238,60155.0,60144.0,0.332534]
[1726650403645,0.16624,60154.0,60147.0,0.166258]
[1726650403873,0.332469,60156.0,60144.0,0.166265]
[1726650403874,0.166245,60152.0,60144.0,0.166265]
[1726650404083,0.166242,60154.0,60139.0,0.332562]
[1726650404322,0.166242,60154.0,60140.0,0.023]
[1726650404542,0.166242,60154.0,60147.0,0.166258]
[1726650404763,0.166242,60154.0,60146.0,0.023]
[1726650404764,0.166242,60154.0,60148.0,0.166256]
[1726650405411,0.166242,60153.0,60147.0,0.023]
[1726650405622,0.031,60155.0,60147.0,0.023]
[1726650406147,0.16624,60154.0,60148.0,0.166255]
[1726650406388,0.16624,60154.0,60143.0,0.33254]
[1726650406389,0.332493,60152.0,60144.0,0.023]
[1726650406631,0.332493,60152.0,60143.0,0.33254]
[1726650406632,0.0907,60153.0,60146.0,0.355522]
[1726650406848,0.0907,60153.0,60148.0,0.166256]
[1726650407064,0.166246,60152.0,60146.0,0.166261]
[1726650407291,0.166246,60152.0,60147.0,0.023]
[1726650407521,0.0907,60153.0,60147.0,0.189257]
[1726650407753,0.013,60152.0,60148.0,0.166256]
[1726650409123,0.256943,60153.0,60150.0,0.166249]
[1726650409124,0.0907,60153.0,60150.0,0.166249]
[1726650409354,0.013,60152.0,60149.0,0.166252]
[1726650409596,0.013,60152.0,60150.0,0.166248]
[1726650409835,0.0907,60153.0,60147.0,0.023]
[1726650410061,0.013,60152.0,60148.0,0.166255]
[1726650410287,0.0907,60153.0,60150.0,0.166249]
[1726650410514,0.0907,60153.0,60152.0,0.189245]
[1726650410738,0.0907,60153.0,60152.0,0.023]
[1726650410959,0.0907,60153.0,60152.0,0.189245]
[1726650411635,0.0907,60153.0,60150.0,0.023]
[1726650411870,0.0907,60153.0,60152.0,0.023]
[1726650412073,0.0907,60153.0,60152.0,0.189245]
[1726650413197,0.1047,60153.0,60152.0,0.189245]
[1726650413880,0.014,60153.0,60152.0,0.189245]
[1726650414955,0.014,60153.0,60151.0,0.166246]
[1726650415169,0.014,60153.0,60152.0,0.023]
[1726650415653,0.014,60153.0,60152.0,0.189245]
[1726650416077,0.03,60155.0,60152.0,0.189245]
[1726650416292,0.014,60153.0,60152.0,0.189245]
[1726650416752,0.03,60155.0,60152.0,0.189245]
[1726650416969,0.03,60155.0,60153.0,0.166242]
[1726650417188,0.03,60157.0,60150.0,0.332501]
[1726650417403,0.03,60155.0,60151.0,0.023]
[1726650417625,0.03,60155.0,60152.0,0.166244]
[1726650417852,0.03,60155.0,60151.0,0.189248]
[1726650418071,0.03,60155.0,60152.0,0.166244]
[1726650418725,0.03,60155.0,60154.0,0.166239]
[1726650418973,0.03,60155.0,60152.0,0.332485]
[1726650419232,0.0953,60160.0,60153.0,0.332485]
[1726650419233,0.03,60157.0,60153.0,0.332485]
[1726650419462,0.03,60155.0,60154.0,0.189239]
[1726650420133,0.044,60155.0,60154.0,0.521718]
[1726650421081,0.014,60155.0,60154.0,0.521718]
[1726650421314,0.053,60155.0,60154.0,0.521718]
[1726650421551,0.023,60155.0,60154.0,0.521718]
[1726650421809,0.053,60155.0,60154.0,0.521718]
[1726650422026,0.07505005,60155.0,60154.0,0.189239]
[1726650422686,0.07505005,60155.0,60154.0,0.521718]
[1726650424338,0.07505005,60155.0,60154.0,0.189239]
[1726650426273,0.07505005,60155.0,60154.0,0.023]
[1726650426499,0.07505005,60155.0,60149.0,0.023]
[1726650426725,0.16624,60154.0,60150.0,0.166249]
[1726650427018,0.07505005,60155.0,60151.0,0.023]
[1726650427250,0.07505005,60155.0,60151.0,0.189246]
[1726650427678,0.02205005,60155.0,60151.0,0.189246]
[1726650427898,0.05205005,60155.0,60153.0,0.023]
[1726650428130,0.008,60154.0,60153.0,0.189242]
[1726650428349,0.05205005,60155.0,60153.0,0.189242]
[1726650428561,0.05205005,60155.0,60154.0,0.000822]
[1726650428782,0.05205005,60155.0,60154.0,0.167061]
[1726650428783,0.06105005,60155.0,60154.0,0.167061]
[1726650429008,0.05205005,60155.0,60154.0,0.167061]
[1726650429248,0.02205005,60155.0,60154.0,0.49954]
[1726650429727,0.02205005,60155.0,60154.0,0.52254]
[1726650431146,0.03105005,60155.0,60154.0,0.52254]
[1726650431617,0.03105005,60155.0,60154.0,0.190061]
[1726650432101,0.03105005,60155.0,60154.0,0.000822]
[1726650432313,0.03105005,60155.0,60154.0,0.190061]
[1726650433014,0.03105005,60155.0,60154.0,0.51849344]
[1726650433882,0.03105005,60155.0,60154.0,1.18345144]
[1726650434776,0.03105005,60155.0,60154.0,0.85097244]
[1726650435934,0.03105005,60155.0,60154.0,1.34650511]
[1726650436883,0.02205005,60155.0,60154.0,1.34650511]
[1726650437360,0.02305005,60155.0,60154.0,1.34650511]
[1726650437611,0.02205005,60155.0,60154.0,1.34650511]
[1726650438089,0.02305005,60155.0,60154.0,1.34650511]
[1726650438313,0.02205005,60155.0,60154.0,1.34650511]
[1726650438594,0.02305005,60155.0,60154.0,1.34850511]
[1726650439072,0.02205005,60155.0,60154.0,1.34650511]
[1726650440482,0.02305005,60155.0,60154.0,1.34850511]
[1726650440996,0.02205005,60155.0,60154.0,1.34650511]
[1726650441229,0.02305005,60155.0,60154.0,1.34850511]
[1726650441450,0.02205005,60155.0,60154.0,1.34650511]
[1726650441684,0.001644,60167.0,60166.0,0.023]
[1726650441915,0.001644,60167.0,60166.0,0.189206]
[1726650442146,0.001644,60167.0,60166.0,0.521619]
[1726650444320,0.002644,60167.0,60166.0,0.521619]
[1726650444567,4.002644,60167.0,60166.0,0.521619]